Cogmind - Beta 12 X4 @@@ ROGUE MODE // 2022.11.30 @ 21:26:58 Player: Lunatic Blue Result: Destroyed by as-90882 with Assembled Heavy Rifle Performance ------------- Evolutions (0) 0 Regions Visited (3) 600 Robots Destroyed (13) 65 Value Destroyed (345) 345 Prototype IDs (0) 0 Alien Tech Used (0) 0 Bonus (300) 300 TOTAL SCORE: 1310 Bonus ------- Aligned with FarCom 300 Cogmind --------- Core Integrity 0/250 Matter 228/300 Energy 100/100 System Corruption 0% Temperature Cool (0) Movement Rolling (185) Ox7 Location -10/Exiles Parts ------- > --- POWER (1) -------- (None) > --- PROPULSION (2) --- Light Treads Wheel > --- UTILITY (2) ------ Huge Storage Unit Signal Interpreter > --- WEAPON (2) ------- (None) > --- INVENTORY (25) --- Light Ion Engine Light Treads Light Treads Wheel Improved Heat Sink Huge Storage Unit Weapon Shielding Light Armor Plating EM Pulse Gun Light Assault Rifle Light Assault Rifle Light Assault Rifle Light Assault Rifle Light Assault Rifle Light Assault Rifle Light Assault Rifle Bore Cannon AWS/Autocannon Peak State ------------ > --- POWER ------------ Light Nuclear Core > --- PROPULSION ------- Light Treads Light Treads > --- UTILITY ---------- Huge Storage Unit Signal Interpreter > --- WEAPON ----------- Assault Rifle Assault Rifle > --- INVENTORY -------- Light Ion Engine Light Nuclear Core Fission Core Fission Core Light Fission Core Light Treads Light Treads Wheel Wheel Improved Heat Sink Huge Storage Unit Weapon Shielding Light Armor Plating EM Pulse Gun Light Assault Rifle Light Assault Rifle Light Assault Rifle Light Assault Rifle Light Assault Rifle Light Assault Rifle Light Assault Rifle Bore Cannon AWS/Autocannon [Rating: 16] Favorites ----------- Power Ion Engine Engine Ion Engine Power Core Light Nuclear Core Propulsion Light Treads Treads Light Treads Wheel Wheel Utility Signal Interpreter Storage Huge Storage Unit Processor Signal Interpreter Weapon Assault Rifle Ballistic Gun Assault Rifle Build | -11 -10 -10 -10 ------- Run | Scr Mat Min Exi Slots Evolved . | . . . . Power . | . . . . Propulsion . | . . . . Utility . | . . . . Weapon . | . . . . Parts Attached 18 | 6 4 2 6 Power 4 | 1 1 1 1 Engine 2 | 1 1 . . Core 2 | . . 1 1 Reactor . | . . . . Propulsion 5 | 2 . . 3 Treads 3 | 1 . . 2 Leg . | . . . . Wheel 2 | 1 . . 1 Hover . | . . . . Flight . | . . . . Utility 3 | 1 2 . . Device . | . . . . Storage 2 | 1 1 . . Processor 1 | . 1 . . Hackware . | . . . . Protection . | . . . . Artifact . | . . . . Weapon 6 | 2 1 1 2 Energy Gun . | . . . . Energy Cannon . | . . . . Ballistic Gun 6 | 2 1 1 2 Ballistic Cannon . | . . . . Launcher . | . . . . Special Weapon . | . . . . Impact Weapon . | . . . . Slashing Weapon . | . . . . Piercing Weapon . | . . . . Special Melee Weapon . | . . . . Unidentified Prototypes . | . . . . Parts Lost 8 | . 1 2 5 Power 3 | . . 1 2 Propulsion 1 | . . . 1 Utility . | . . . . Weapon 4 | . 1 1 2 Highest Loss Streak 5 | . 1 1 5 To Critical Strikes . | . . . . Average Slot Usage (%) 99 | . 99 99 98 Engine 10 | . 14 10 . Core 3 | . . 3 13 Treads 15 | . 14 14 20 Wheel 12 | . 14 14 6 Storage 14 | . 14 14 14 Processor 13 | . 13 14 14 Ballistic Gun 27 | . 28 28 26 Naked Turns . | . . . . Heaviest Build 89 | 14 89 89 89 Greatest Support 40 | 10 10 10 40 Greatest Overweight (x) 8 | 2 8 8 8 Average Overweight (x) 7 | 1 7 8 5 Largest Inventory Capacity 25 | 8 25 25 25 Average Capacity 24 | 7 24 25 25 Most Carried 25 | 4 21 24 25 Average Carried 19 | 2 16 23 24 Final Capacity 25 | 8 25 25 25 Final Carried 24 | 4 21 24 20 Class Distribution -------------------- 100% | Mutant Dominant Class ---------------- Mutant | -10/Materials Mutant | -10/Mines Mutant | -10/Exiles Resources | -11 -10 -10 -10 ----------- Run | Scr Mat Min Exi Matter Collected 572 | 217 257 98 . Remotely . | . . . . Salvage Created 498 | . 362 125 11 Parts 24 | . 16 8 . Haulers Intercepted 2 | . 2 . . Recyclers Shooed . | . . . . Parts Field Recycled . | . . . . Retrieved Matter . | . . . . Parts Self-Destructed . | . . . . Prevented . | . . . . Kills | -11 -10 -10 -10 ------- Run | Scr Mat Min Exi Combat Hostiles Destroyed 12 | . 6 5 1 Guns 12 | . 6 5 1 Classes Destroyed 4 | . 2 1 1 Hauler 2 | . 2 . . Swarmer 3 | . . 3 . Grunt 8 | . 6 2 . Assembled 1 | . . . 1 Best Kill Streak 3 | . 2 3 1 Combat Bots Only 3 | . 2 3 1 Max Kills in Single Turn 1 | . 1 1 1 Gunslinging . | . . . . Exploded . | . . . . Melee . | . . . . Uniques/NPCs Destroyed . | . . . . Combat | -11 -10 -10 -10 -------- Run | Scr Mat Min Exi Damage Taken 1332 | . 464 325 543 Core 250 | . 95 80 75 Absorbed by Shields . | . . . . Core Remaining (%) 100 | 100 . . . Volleys Fired 51 | . 29 16 6 Largest 2 | . 2 2 2 Hottest 40 | . 40 40 40 Shots Fired 98 | . 58 31 9 Gun 98 | . 58 31 9 Cannon . | . . . . Launcher . | . . . . Special . | . . . . Kinetic 98 | . 58 31 9 Thermal . | . . . . Explosive . | . . . . Electromagnetic . | . . . . Robot Hit Streak 12 | . 12 10 2 Robot Miss Streak 4 | . 3 4 2 Penetration Max . | . . . . Secondary Targets 2 | . . 2 . Max Gunslinging Chain 1 | . . 1 . Shots Hit Robots 61 | . 36 21 4 Core Hits 25 | . 16 8 1 Critical Kills 1 | . 1 . . Critical Parts Destroyed . | . . . . Critical Strikes 1 | . 1 . . Destroy 1 | . 1 . . Melee Attacks . | . . . . Impact . | . . . . Slashing . | . . . . Piercing . | . . . . Sneak Attacks . | . . . . Combat Hostiles . | . . . . Follow-up Attacks . | . . . . Damage Inflicted 824 | . 506 271 47 Guns 824 | . 506 271 47 Cannons . | . . . . Explosions . | . . . . Melee . | . . . . Ramming . | . . . . Kinetic 824 | . 506 271 47 Thermal . | . . . . Explosive . | . . . . Electromagnetic . | . . . . Impact . | . . . . Slashing . | . . . . Piercing . | . . . . Highest Corruption . | . . . . Average Corruption . | . . . . Corruption Purged . | . . . . Corruption Blocked . | . . . . Overload Shots . | . . . . Overflow Damage . | . . . . Projectiles . | . . . . Explosions . | . . . . Melee . | . . . . Knockbacks . | . . . . Impact . | . . . . Kinetic . | . . . . Secondary . | . . . . Self-Inflicted Damage . | . . . . Shots . | . . . . Rammed . | . . . . Targets Rammed . | . . . . Kicked . | . . . . Crushed . | . . . . Highest Temperature 25 | . 2 2 25 Average Temperature 7 | . 2 2 12 Received Heat Transfer 369 | . 168 81 120 Siege Activations . | . . . . Robots Corrupted . | . . . . Combat Hostiles . | . . . . Parts Fried . | . . . . Impact Corruptions . | . . . . Robots Melted . | . . . . Combat Hostiles . | . . . . Parts Melted . | . . . . Heat Transferred . | . . . . Parts Sabotaged . | . . . . Parts Stolen . | . . . . Parts Stripped . | . . . . Power Chain Reactions . | . . . . Missiles Intercepted . | . . . . Alert | -11 -10 -10 -10 ------- Run | Scr Mat Min Exi Peak Influence 126 | . 126 65 . Initial 5 | . . 5 . Average 28 | . 24 36 . Maximum Alert Level . | . . . . Low Security (%) 100 | 100 100 100 . Level 1 . | . . . . Level 2 . | . . . . Level 3 . | . . . . Level 4 . | . . . . Level 5 . | . . . . High Security . | . . . . Max Security . | . . . . Squads Dispatched 1 | . 1 . . Investigation . | . . . . Extermination . | . . . . Reinforcement 1 | . 1 . . Assault . | . . . . Garrison . | . . . . Intercept . | . . . . Searches Triggered . | . . . . Construction Impeded . | . . . . Haulers Reinforced . | . . . . Active Scanning Responses . | . . . . Cargo Convoy Interrupts . | . . . . Stealth | -11 -10 -10 -10 --------- Run | Scr Mat Min Exi Distress Signals . | . . . . Communications Jammed . | . . . . Distress Signals . | . . . . Times Spotted 25 | . 14 5 6 Peak Tracking Total 9 | . 3 3 9 Tactical Retreats . | . . . . Traps | -11 -10 -10 -10 ------- Run | Scr Mat Min Exi Traps Triggered 1 | . 1 . . Indirectly . | . . . . Trap Hack Attempts . | . . . . Triggered . | . . . . Disarmed . | . . . . Reprogrammed . | . . . . Reused . | . . . . Traps Extracted . | . . . . Installed . | . . . . Triggered . | . . . . Exploded 3 | . . . 3 Machines | -11 -10 -10 -10 ---------- Run | Scr Mat Min Exi Machines Disabled 3 | . . . 3 Max in Single Turn 1 | . . . 1 Machines Sabotaged . | . . . . Overloaded Fab Kills . | . . . . Hacking | -11 -10 -10 -10 --------- Run | Scr Mat Min Exi Machines Accessed 7 | . 6 1 . Terminals 6 | . 6 . . Fabricators . | . . . . Repair Stations . | . . . . Recycling Units . | . . . . Scanalyzers . | . . . . Garrison Access . | . . . . Total Hacks 19 | . 18 1 . Successful 9 | . 8 1 . Failed 10 | . 10 . . Catastrophic 1 | . 1 . . Database Lockouts . | . . . . Manual 9 | . 8 . 1 Terminals 18 | . 18 . . Fabricators . | . . . . Repair Stations . | . . . . Recycling Units . | . . . . Scanalyzers . | . . . . Garrison Access . | . . . . Terminal Hacks 7 | . 6 1 . Robot Analysis 1 | . 1 . . Open Door 1 | . . 1 . Unreport Threat 1 | . 1 . . Surveillance Status 1 | . 1 . . Registered Components 1 | . 1 . . Zone Layout 2 | . 2 . . Fabricator Hacks . | . . . . Repair Station Hacks . | . . . . Recycling Unit Hacks . | . . . . Scanalyzer . | . . . . Garrison Access Hacks . | . . . . Unauthorized Hacks 2 | . 2 . . Terminals 2 | . 2 . . Botnet 1 | . 1 . . Operators 1 | . 1 . . Fabricators . | . . . . Repair Stations . | . . . . Recycling Units . | . . . . Scanalyzers . | . . . . Garrison Access . | . . . . Data Cores Recovered . | . . . . Used . | . . . . Hacking Detections 6 | . 6 . . Full Trace Events . | . . . . Feedback Events . | . . . . Feedback Blocked . | . . . . Robot Schematics Acquired . | . . . . Robots Built . | . . . . Authchips . | . . . . Time . | . . . . Total Robot Build Rating . | . . . . Part Schematics Acquired . | . . . . Parts Built . | . . . . Authchips . | . . . . Time . | . . . . Total Part Build Rating . | . . . . Parts Repaired . | . . . . Time . | . . . . Parts Recycled . | . . . . Recycled Matter . | . . . . Retrieved Matter . | . . . . Retrieved Components . | . . . . Parts Scanalyzed . | . . . . Part Schematics Acquired . | . . . . Parts Damaged . | . . . . Bothacking | -11 -10 -10 -10 ------------ Run | Scr Mat Min Exi Used RIF Installer . | . . . . Robots Hacked . | . . . . Non-combat . | . . . . Combat . | . . . . Robot Hacks Applied . | . . . . Relay Couplers Released . | . . . . Fabnet Peak Effective % . | . . . . Robots Rewired . | . . . . Allies Hacked . | . . . . Hacks Repelled . | . . . . Allies | -11 -10 -10 -10 -------- Run | Scr Mat Min Exi Total Allies 3 | . . 3 . Largest Group 3 | . . 3 3 Highest-Rated Group 40 | . . 40 40 Highest-Rated Ally 16 | . . 16 16 Total Orders 3 | . . . 3 STAY 3 | . . . 3 Ally Attacks 9 | . . . 9 Total Damage 72 | . . . 72 Kills 1 | . . . 1 Allies Corrupted . | . . . . Allies Melted . | . . . . Intel | -11 -10 -10 -10 ------- Run | Scr Mat Min Exi Robot Analysis Total 1 | . 1 . . Derelict Logs Recovered 1 | . . 1 . Drone Launches . | . . . . Drone Recoveries . | . . . . Exploration | -11 -10 -10 -10 ------------- Run | Scr Mat Min Exi Turns Passed 3127 | 60 1535 922 610 Spaces Moved 1433 | 48 727 425 233 Core 8 | 8 . . . Treads 89 | . . . 89 Legs . | . . . . Wheels 1336 | 40 727 425 144 Hover . | . . . . Flight . | . . . . Fastest Speed 50 | 50 95 200 185 Average Speed 200 | 99 192 200 247 Slowest Speed 480 | 150 200 200 480 Overloaded Moves . | . . . . Propulsion Burnouts . | . . . . Robots Hopped . | . . . . Cave-ins Triggered . | . . . . Exploration Rate (%) 62 | 4 95 89 60 Regions Visited 3 Branch Regions 2 Pre-discovered Areas . | . . . . Known Exits Taken 2 | . 1 1 . Unknown Exits Taken 1 | 1 . . . Scrap Searched 1 | . . 1 . Spaces Dug . | . . . . Terrain Destroyed . | . . . . Melee . | . . . . Projectile . | . . . . AOE . | . . . . Terrain Rammed . | . . . . Walls Destroyed . | . . . . Machines Disabled . | . . . . Actions | -11 -10 -10 -10 --------- Run | Scr Mat Min Exi Total 1588 | 57 804 466 261 Wait 51 | . 29 20 2 Move 1430 | 47 726 424 233 Hop . | . . . . Pick Up 28 | 4 16 4 4 Fast Attach 10 | 6 1 1 2 Attach 5 | . 1 1 3 Detach . | . . . . Swap 3 | . 2 . 1 Drop 10 | . . . 10 Fire 51 | . 29 16 6 Melee . | . . . . Ram . | . . . . Kick . | . . . . Crush . | . . . . Escape Stasis . | . . . . Rewire . | . . . . Trap . | . . . . Miscellaneous . | . . . . Route ------- -11/Scrapyard -10/Materials (discovered 5 exits: *Mat x3 / *Min x2) -10/Mines (discovered 3 exits: *Mat x2 / *Exi) -10/Exiles History --------- Turn | Location | Event 2 | -11/Scrapyard | Met Revision 17 17 | -11/Scrapyard | Discovered new exit (range 15) 61 | -11/Scrapyard | Entered Materials 304 | -10/Materials | Build established: Mutant 344 | -10/Materials | Discovered new exit (range 12) 366 | -10/Materials | Identified exit to Mines 573 | -10/Materials | Discovered new exit (range 6) 625 | -10/Materials | Identified exit to Materials 747 | -10/Materials | Discovered exit to Materials (range 12) 1058 | -10/Materials | Discovered exit to Mines (range 10) 1064 | -10/Materials | Discovered exit to Materials (range 16) 1596 | -10/Materials | Entered Mines 1605 | -10/Mines | Core integrity fell below 50% 1783 | -10/Mines | A weapon hastily lodged in a ceiling crevice suddenly fell to the ground 1959 | -10/Mines | Found a hidden stash of uninstalled traps 2139 | -10/Mines | Discovered exit to Materials (range 6) 2303 | -10/Mines | Met a Derelict who couldn't figure out how to use a Trap Extractor 2340 | -10/Mines | Discovered exit to Materials (range 11) 2386 | -10/Mines | Assisted by bots powering up and referring to "LRC-V3" 2422 | -10/Mines | Identified exit to Exiles 2504 | -10/Mines | Deemed a non-threat by the Exiles lab entrance 2518 | -10/Mines | Entered Exiles 2518 | -10/Exiles | Accompanied by 3 allies 2572 | -10/Exiles | Met 8R-AWN 2604 | -10/Exiles | Met EX-HEX 2688 | -10/Exiles | Met EX-BIN 2716 | -10/Exiles | Aligned with FarCom system 2718 | -10/Exiles | Given EX-Vault access code 2764 | -10/Exiles | Opened EX-Vault 2799 | -10/Exiles | Found Prototype Ballistic Cannon 2864 | -10/Exiles | Warned to stay clear of 0b10 Research branches 2963 | -10/Exiles | Met EX-DEC 3049 | -10/Exiles | Attacked by the Exiles 3115 | -10/Exiles | Core integrity fell below 20% 3128 | -10/Exiles | Destroyed by as-90882 with Assembled Heavy Rifle Last Messages --------------- 03050_ Dropped Rigged Fission Core. 03074_ Lgt. Treads destroyed. 03076_ Rigged Fission Core explodes. 03076_ as-54173 destroyed. 03076_ Machine disabled. 03079_ Dropped Rigged Lgt. Fission Core. 03080_ Rigged Fission Core explodes. 03080_ as-24581 destroyed. 03085_ Rigged Lgt. Fission Core explodes. 03085_ as-53644 destroyed. 03091_ Lgt. Nuclear Core destroyed. 03106_ Assault Rifle destroyed. 03106_ as-15115 destroyed. 03107_ Machine disabled. 03108_ Assault Rifle destroyed. 03110_ Machine disabled. 03119_ Lgt. Nuclear Core destroyed. 03121_ Penetrated by HV Slug. 03121_ HV Slug penetrates Wall. 03127_ Penetrated by HV Slug. Map ----- +----------------------------------------------------+ | ?????????????????????????????????????????????????? | | ?????????????????????????????????????????????????? | | ?????????????????????????????????????????????????? | | ?????????????????????????????????????????????????? | | ?????????????????????????????????????????????????? | | ?????????????????????????????????????????????????? | | ?????????????????????????????????????????????????? | | ?????????????????????????????????????????????????? | | ?????????????????????????????????????????????????? | | ?????????????????????????????????????????????????? | | ?????????????????????????????????????????????????? | | ?????????????????????????????????????????????????? | | ?????????????????????????????????????????????????? | | ?????????????????????????????????????????????????? | | ?????????????????????????????????????????????????? | | ?????????????????????????????????????????????????? | | ?????????????????????????????????????????????????? | | ?????????????????????????????????????????????????? | | ?????????????????????????????????????????????????? | | ??????????????# ????????????????????????????????? | | ???????????????# ???????????????????????????????? | | ???????????????# ?????????????????????????????? | | ????????????????# ??????????????#######???????? | | ????????????????# #######??????#!!! "#???????? | | ????????????????# #""##?????# "#???????? | | ?????????????????# @ #?????# "#???????? | | ?????????????????##" ##???## ""#???????? | | ?????????????????#"" #####" ""#???????? | | ?????????????????#### ##" ""#???????? | | ????????????????????## ; " #?????????? | | ?????????????????????#"## #?????????? | | ?????????????????????##?#### ##????????? | | ???????????????????????????### "####?????? | | ???????????????????????????## """#?????? | | ?????????????????????????""""" % "#?????? | | ??????????????????????! "###" % """###? | | ?????????????????????#! "#?##" "" | | ?????????????????????#! ##??#" | | ?????????????????????# !""""""###???#"# % | | ?????????????????????#########??????#### | | ???????????????????????????????????????### | | ?????????????????????????????????????????### | | ???????????????????????????????????????????## | | ????????????????????????????????????????????## | | ?????????????????????????????????????????????##" | | ??????????????????????????????????????????????#""" | | ??????????????????????????????????????????????#" | | ??????????????????????????????????????????????"" | | ??????????????????????????????????????????????""" | | ??????????????????????????????????????????????"" | +----------------------------------------------------+ Best States ------------- Heat Dissipation 25 Energy Generation 14 Energy Capacity 250 Matter Stores 300 Matter Capacity 300 Sight Range 16 Terrain Scan Density 10 Evasion (%) 44 Recoil Reduction 2 Item Schematics ----------------- None Robot Schematics ------------------ None Fabricated ------------ Nothing Alien Tech Used ----------------- None Achievements -------------- None Challenges ------------ None Game ------ Seed DamperHeavyBlaster Manual? 0 Play Time 00:14:40 Cumulative 111.0 hours Start 2022.11.30 @ 21:14:52 End 2022.11.30 @ 21:26:58 Sessions 1 Manual Loads 0 Difficulty Rogue Special Mode None Game No. 203 Rogue 203 Adventurer 0 Explorer 0 Win Type - Total 2 Types 1/0/1/0/0/0/0/0/0 Lore% 63 Gallery% 69 Achievement% 51 Wizard Run 0 Options --------- ASCII 0 Keyboard 0 Movement Mouse Keybinds 0 Fullscreen 1 Font 18/SmallcapsGlow Map View 76x50 Tactical HUD 1 Map Filters NONE Filters NONE Steam 1 RUN: 1d58f210-9db1-44c3-a9fd-00c634772f0e